[Event "RUS-chT Premier League Women 2018"]
[Site "Sochi"]
[Date "2018.05.03"]
[Round "3"]
[White "Selifonova, Aleksandra"]
[Black "Tomashevskaya, Lidia"]
[Result "1-0"]
[ECO "B16"]
[WhiteElo "1890"]
[BlackElo "2172"]
[Annotator "NA"]
[PlyCount "87"]
[EventDate "2018.??.??"]
[EventCountry "RUS"]
[SourceTitle "playchess.com"]
[Source "ChessBase"]
[SourceQuality "1"]
[TimeControl "40/5400+30:1800+30"]

1. e4 {[%emt 0:00:00]} c6 {[%emt 0:00:07]} 2. d4 {[%emt 0:00:00]} d5 {[%emt 0:00:04]} 3. Nc3 {[%emt 0:00:44]} dxe4 {[%emt 0:00:14]} 4. Nxe4 {[%emt 0:00:03]} Nf6 {[%emt 0:00:09]} 5. Nxf6+ {[%emt 0:02:25]} gxf6 {[%emt 0:00:04]} 6. Be3 {[%emt 0:03:37]} Nd7 {[%emt 0:02:22]} 7. Qh5 {[%emt 0:08:40]} Nb6 {[%emt 0:04:01]} 8. Nf3 {[%emt 0:04:31]} Be6 {[%emt 0:02:52]} 9. b3 {[%emt 0:08:43]} Qd7 {[%emt 0:10:53]} 10. Nh4 {[%emt 0:12:47]} (10. c4 $16) 10... Nd5 {[%emt 0:03:11]} 11. h3 {[%emt 0:02:24]} Nxe3 {[%emt 0:13:55]} 12. fxe3 $11 {[%emt 0:00:05]} Qd6 {[%emt 0:00:51]} 13. Bd3 {[%emt 0:22:00]} Qg3+ {[%emt 0:09:44]} 14. Ke2 {[%emt 0:01:44]} O-O-O {[%emt 0:01:52]} 15. Be4 {[%emt 0:06:20]} Qg5 {[%emt 0:07:54]} 16. Qxg5 {[%emt 0:04:24]} fxg5 {[%emt 0:00:08]} 17. Nf5 {[%emt 0:01:37]} Bxf5 {[%emt 0:06:28]} 18. Bxf5+ {[%emt 0:00:02]} e6 {[%emt 0:00:05]} 19. Bd3 {[%emt 0:00:20]} Bg7 {[%emt 0:04:21]} 20. c3 {[%emt 0:01:33]} h5 {[%emt 0:07:05]} 21. Raf1 {[%emt 0:05:01]} Rhf8 {[%emt 0:03:58]} 22. Rf2 {[%emt 0:02:33]} c5 {[%emt 0:04:17]} 23. Rhf1 {[%emt 0:00:45]} cxd4 {[%emt 0:03:05]} 24. exd4 {[%emt 0:03:52]} f5 {[%emt 0:01:51]} 25. Bc4 {[%emt 0:00:17]} Kc7 {[%emt 0:05:16]} 26. Kd3 {[%emt 0:02:35]} Kd6 {[%emt 0:04:21]} 27. Ke3 {[%emt 0:03:02]} h4 {[%emt 0:00:40]} 28. Be2 {[%emt 0:02:09]} Kc7 {[%emt 0:01:55]} 29. Bc4 {[%emt 0:01:22]} e5 {[%emt 0:01:38]} 30. d5 {[%emt 0:00:44]} f4+ {[%emt 0:01:25]} 31. Ke4 {[%emt 0:00:06]} a6 {[%emt 0:00:39]} 32. Be2 {[%emt 0:00:24]} Kd6 {[%emt 0:00:31]} 33. c4 {[%emt 0:00:07]} a5 {[%emt 0:00:26]} 34. Bg4 {[%emt 0:00:34]} Kc5 {[%emt 0:00:34]} 35. Rd2 {[%emt 0:00:37]} Rd6 {[%emt 0:00:32]} 36. Rfd1 {[%emt 0:00:51]} b5 {[%emt 0:00:28]} 37. cxb5 {[%emt 0:00:44]} Kxb5 {[%emt 0:00:01]} 38. Rc2 {[%emt 0:00:16]} Ra8 {[%emt 0:00:58]} 39. Rc7 {[%emt 0:00:18]} Bf6 {[%emt 0:00:26]} 40. Rdc1 {[%emt 0:00:00]} Rad8 {[%emt 0:00:35]} 41. Rb7+ {[%emt 0:01:52]} Ka6 {[%emt 0:00:28]} 42. Rcc7 {[%emt 0:01:37]} a4 {[%emt 0:02:12]} 43. Be2+ {[%emt 0:00:14]} Ka5 {[%emt 0:00:14]} 44. b4# 1-0

[Event "RUS-chT Premier League Women 2018"]
[Site "Sochi"]
[Date "2018.05.04"]
[Round "4"]
[White "Voit, Daria"]
[Black "Selifonova, Aleksandra"]
[Result "1-0"]
[ECO "E04"]
[WhiteElo "2382"]
[BlackElo "1890"]
[Annotator "NA"]
[PlyCount "85"]
[EventDate "2018.??.??"]
[EventCountry "RUS"]
[SourceTitle "playchess.com"]
[Source "ChessBase"]
[SourceQuality "1"]
[TimeControl "40/5400+30:1800+30"]

1. Nf3 {[%emt 0:00:00]} Nf6 {[%emt 0:00:02]} 2. c4 {[%emt 0:00:00]} e6 {[%emt 0:00:07]} 3. d4 {[%emt 0:00:14]} d5 {[%emt 0:00:08]} 4. g3 {[%emt 0:00:30]} dxc4 {[%emt 0:00:40]} 5. Bg2 {[%emt 0:00:06]} Nc6 {[%emt 0:00:26]} 6. Qa4 {[%emt 0:02:39]} Bb4+ {[%emt 0:00:18]} 7. Bd2 {[%emt 0:00:58]} Nd5 {[%emt 0:01:04]} 8. Bxb4 {[%emt 0:03:56] E04: Open Catalan: 5 Nf3} Ndxb4 {[%emt 0:00:05]} 9. Na3 {[%emt 0:07:00]} (9. Ne5 O-O 10. Nxc6 Nxc6 11. e3 e5 12. d5 Ne7 13. Qxc4 c6 14. dxc6 Nxc6 15. Nc3 Be6 16. Qb5 Qb6 17. Qxb6 axb6 {½-½ (31) Wojtaszek,R (2744)-Mamedyarov,S (2814) Shamkir 2018}) 9... a6 {[%emt 0:10:26]} 10. Ne5 {[%emt 0:25:10]} O-O $146 {[%emt 0:02:24]} ({Predecessor:} 10... Bd7 $5 11. O-O b5 12. Qd1 Nxe5 13. Bxa8 Qxa8 14. dxe5 Qe4 15. Qd2 Nd5 {0-1 (63) Gopal,G (2566)-Savchenko,B (2609) Moscow 2012}) 11. Nxc6 {[%emt 0:05:12]} Nxc6 {[%emt 0:00:05]} 12. Bxc6 {[%emt 0:02:11]} bxc6 {[%emt 0:00:06]} 13. Qxc4 {[%emt 0:00:20]} Rb8 {[%emt 0:01:37]} 14. b3 {[%emt 0:01:06]} a5 {[%emt 0:04:52]} 15. Nc2 {[%emt 0:03:02]} Rb6 {[%emt 0:01:12]} 16. Qc3 {[%emt 0:08:00]} Qd5 {[%emt 0:05:05]} 17. O-O {[%emt 0:03:27]} Ba6 {[%emt 0:03:39]} 18. Rfe1 {[%emt 0:01:22]} Qh5 {[%emt 0:02:40]} 19. f3 {[%emt 0:01:16]} Qg6 {[%emt 0:11:09]} 20. Rac1 $16 {[%emt 0:05:11]} Ra8 {[%emt 0:04:28]} 21. Qxa5 {[%emt 0:11:58]} Bb7 {[%emt 0:01:02]} 22. Qe5 {[%emt 0:00:12]} Rb5 {[%emt 0:09:21]} 23. Qxc7 {[%emt 0:00:11]} h5 {[%emt 0:00:19]} 24. d5 {[%emt 0:03:33]} exd5 {[%emt 0:10:38]} 25. Nd4 {[%emt 0:01:09]} Rc8 {[%emt 0:01:46]} 26. Qd7 {[%emt 0:03:51]} Rb6 {[%emt 0:07:32]} 27. Nf5 {[%emt 0:00:26]} Qe6 {[%emt 0:01:03]} 28. Qxe6 {[%emt 0:01:45]} fxe6 {[%emt 0:00:03]} 29. Ne7+ {[%emt 0:00:08]} Kf7 {[%emt 0:00:02]} 30. Nxc8 {[%emt 0:00:11]} Bxc8 {[%emt 0:00:02]} 31. e4 {[%emt 0:00:46]} d4 {[%emt 0:00:57]} 32. Red1 {[%emt 0:00:22]} e5 {[%emt 0:00:10]} 33. Rc5 {[%emt 0:01:37]} Kf6 {[%emt 0:00:51]} 34. f4 {[%emt 0:00:10]} Ra6 {[%emt 0:01:40]} 35. Rxe5 {[%emt 0:02:51]} Rxa2 {[%emt 0:00:19]} 36. Rxd4 {[%emt 0:01:19]} Ra1+ {[%emt 0:00:36]} 37. Kf2 {[%emt 0:00:04]} Ra2+ {[%emt 0:00:10]} 38. Ke3 {[%emt 0:00:03]} Rxh2 {[%emt 0:00:12]} 39. Rd6+ {[%emt 0:00:08]} Kf7 {[%emt 0:00:06]} 40. Rxc6 {[%emt 0:00:00]} Bg4 {[%emt 0:00:13]} 41. Rc7+ {[%emt 0:00:35]} Kf6 {[%emt 0:01:12]} 42. Rb5 {[%emt 0:00:36]} Be6 {[%emt 0:02:10]} 43. f5 {[%emt 0:01:56]} 1-0

[Event "RUS-chT Premier League Women 2018"]
[Site "Sochi"]
[Date "2018.05.04"]
[Round "4"]
[White "Styazhkina, Anna"]
[Black "Kovanova, Baira"]
[Result "0-1"]
[ECO "C47"]
[WhiteElo "2299"]
[BlackElo "2358"]
[Annotator "NA"]
[PlyCount "88"]
[EventDate "2018.??.??"]
[EventCountry "RUS"]
[SourceTitle "playchess.com"]
[Source "ChessBase"]
[SourceQuality "1"]
[TimeControl "40/5400+30:1800+30"]

1. e4 {[%emt 0:00:00]} e5 {[%emt 0:00:04]} 2. Nf3 {[%emt 0:00:00]} Nc6 {[%emt 0:00:02]} 3. Nc3 {[%emt 0:00:00]} Nf6 {[%emt 0:00:06]} 4. a3 {[%emt 0:00:00]} d6 {[%emt 0:07:59]} 5. d4 {[%emt 0:07:24]} Bg4 {[%emt 0:04:53] C47: Scotch Four Knights and Four Knights with 4 g3} 6. d5 {[%emt 0:04:00]} (6. dxe5 dxe5 7. Qxd8+ Rxd8 8. Bb5 Bxf3 9. gxf3 Bd6 10. Bg5 O-O 11. Bxf6 gxf6 12. Nd5 Nd4 13. Bd3 Nxf3+ {½-½ (55) Safarli,E (2639)-Anton Guijarro,D (2666) Riadh 2017}) 6... Nd4 {[%emt 0:03:42]} 7. Be2 {[%emt 0:06:10]} Nxe2 {[%emt 0:02:16]} 8. Qxe2 {[%emt 0:00:06]} Bd7 $146 {[%emt 0:01:13]} ({Predecessor:} 8... Nd7 9. h3 Bxf3 10. Qxf3 Be7 11. Qg4 Bf6 12. h4 a6 13. h5 {½-½ (95) Neimer,V (2420)-Aaron,D (2257) Wheeling 2013}) 9. h3 {[%emt 0:07:33]} h6 {[%emt 0:02:28]} 10. Nh2 {[%emt 0:08:53]} g6 {[%emt 0:03:49]} 11. Ng4 {[%emt 0:03:12]} Nh5 {[%emt 0:04:10]} 12. Be3 {[%emt 0:07:28]} Bg7 {[%emt 0:02:00]} 13. g3 {[%emt 0:07:31]} a6 {[%emt 0:02:43]} 14. O-O-O {[%emt 0:09:04]} Qe7 {[%emt 0:01:20]} 15. Bd2 {[%emt 0:04:13]} b5 {[%emt 0:07:26]} 16. Ne3 {[%emt 0:00:33]} O-O {[%emt 0:03:08]} 17. Nf5 {[%emt 0:03:45]} gxf5 {[%emt 0:01:31]} 18. Qxh5 {[%emt 0:03:35]} Qf6 {[%emt 0:00:02]} 19. g4 {[%emt 0:06:05]} Qg6 {[%emt 0:09:36]} 20. Qh4 {[%emt 0:01:44]} fxe4 {[%emt 0:09:55]} 21. Rhg1 {[%emt 0:00:36]} f6 {[%emt 0:05:22]} 22. Rde1 {[%emt 0:01:35]} c6 {[%emt 0:00:08]} 23. Nxe4 {[%emt 0:00:31]} cxd5 {[%emt 0:00:29]} 24. Nxd6 {[%emt 0:00:06]} Rac8 {[%emt 0:02:26]} 25. Nxc8 {[%emt 0:00:44]} Rxc8 {[%emt 0:01:35]} 26. c3 {[%emt 0:00:10]} b4 {[%emt 0:09:40]} 27. Qh5 {[%emt 0:00:25]} Qd3 {[%emt 0:04:52]} 28. Rg3 {[%emt 0:00:30]} Qc4 {[%emt 0:01:45]} 29. Qg6 {[%emt 0:07:09]} Be8 {[%emt 0:03:04]} 30. Qc2 {[%emt 0:06:01]} bxa3 {[%emt 0:00:22]} 31. b3 {[%emt 0:00:11]} Qc5 {[%emt 0:00:26]} 32. f4 {[%emt 0:02:24]} e4 {[%emt 0:00:33]} 33. f5 {[%emt 0:03:46]} Bb5 {[%emt 0:01:19]} 34. c4 {[%emt 0:00:33]} Qf2 {[%emt 0:00:45]} 35. Rge3 {[%emt 0:00:51]} Bf8 {[%emt 0:03:27]} 36. R3e2 {[%emt 0:00:28]} Qb6 {[%emt 0:01:20]} 37. Bc3 {[%emt 0:00:31]} Bxc4 {[%emt 0:01:57]} 38. bxc4 {[%emt 0:00:21]} Rxc4 {[%emt 0:00:02]} 39. Kd1 {[%emt 0:00:34]} Qc6 {[%emt 0:00:43]} 40. Rd2 {[%emt 0:00:00]} Rxc3 {[%emt 0:00:20]} 41. Qa2 {[%emt 0:01:10]} Rc1+ {[%emt 0:05:17]} 42. Ke2 {[%emt 0:00:07]} Qb5+ $19 {[%emt 0:02:45]} (42... Rxe1+ $142 43. Kxe1 Bb4) 43. Kf2 {[%emt 0:00:21]} Rxe1 {[%emt 0:00:45]} 44. Kxe1 {[%emt 0:00:07]} Bb4 {[%emt 0:00:05]} 0-1

[Event "RUS-chT Premier League Women 2018"]
[Site "Sochi"]
[Date "2018.05.04"]
[Round "4"]
[White "Suslova, Alena"]
[Black "Nikitina, Elena"]
[Result "1-0"]
[ECO "E06"]
[WhiteElo "2153"]
[BlackElo "2047"]
[Annotator "NA"]
[PlyCount "143"]
[EventDate "2018.??.??"]
[EventCountry "RUS"]
[SourceTitle "playchess.com"]
[Source "ChessBase"]
[SourceQuality "1"]
[TimeControl "40/5400+30:1800+30"]

1. c4 {[%emt 0:00:00]} e6 {[%emt 0:00:16]} 2. Nf3 {[%emt 0:02:05]} d5 {[%emt 0:00:31]} 3. g3 {[%emt 0:00:33]} Nf6 {[%emt 0:00:49]} 4. Bg2 {[%emt 0:00:10]} c5 {[%emt 0:00:55]} 5. d4 {[%emt 0:02:09]} Nc6 {[%emt 0:00:59]} 6. O-O {[%emt 0:03:21]} Be7 {[%emt 0:06:27]} 7. cxd5 {[%emt 0:04:57]} Nxd5 {[%emt 0:03:39]} 8. dxc5 {[%emt 0:04:06]} Bxc5 {[%emt 0:02:04]} 9. Qc2 {[%emt 0:03:45]} Be7 {[%emt 0:12:01]} 10. a3 {[%emt 0:03:16] E06: Closed Catalan: Early deviations} (10. Rd1 Bd7 11. Nc3 Nxc3 12. bxc3 O-O 13. Bf4 Qc8 14. Rab1 Rd8 15. Bg5 h6 16. Bxe7 Nxe7 17. Ne5 Bc6 18. Rxd8+ Qxd8 19. Nxc6 bxc6 {1-0 (85) Miton,K (2601)-Kovalenko,I (2653) Wroclaw 2014}) 10... Bd7 {[%emt 0:07:12]} 11. e4 {[%emt 0:01:24]} Nb6 {[%emt 0:03:30]} 12. Nc3 {[%emt 0:01:50]} O-O {[%emt 0:11:37]} 13. Rd1 {[%emt 0:03:43]} Rc8 {[%emt 0:01:45]} 14. Bf4 {[%emt 0:03:37] LiveBook: 6 Games} Qe8 {[%emt 0:05:12] [#]} 15. Qd3 $146 {[%emt 0:09:35]} ({Predecessor:} 15. Qe2 Na5 16. Ne5 Ba4 17. Nxa4 Qxa4 18. Nd3 Nb3 19. Rab1 Rfd8 20. Be3 {½-½ (20) Miles,A (2550)-Lima,D (2420) New York 1997}) 15... Na5 {[%emt 0:03:28]} 16. Ne5 {[%emt 0:04:33]} Ba4 {[%emt 0:02:11]} 17. Nxa4 {[%emt 0:01:15]} Qxa4 {[%emt 0:00:18]} 18. Rac1 {[%emt 0:02:14]} Rcd8 {[%emt 0:05:29]} 19. Qe2 {[%emt 0:01:33]} Nb3 {[%emt 0:03:35]} 20. Rxd8 {[%emt 0:05:38]} Bxd8 {[%emt 0:05:04]} 21. Rd1 {[%emt 0:00:38]} Be7 {[%emt 0:01:30]} 22. Be3 {[%emt 0:01:46]} f6 {[%emt 0:02:19]} 23. Nf3 {[%emt 0:09:19]} e5 {[%emt 0:05:45]} 24. Bh3 {[%emt 0:03:18]} Nc5 {[%emt 0:02:52]} 25. Bxc5 {[%emt 0:04:21]} Bxc5 {[%emt 0:00:13]} 26. Rc1 {[%emt 0:01:45]} Bd6 {[%emt 0:01:08]} 27. Be6+ {[%emt 0:04:19]} Kh8 {[%emt 0:00:11]} 28. h4 {[%emt 0:00:32]} Qe8 {[%emt 0:01:52]} 29. Ba2 {[%emt 0:01:45]} g6 {[%emt 0:01:56]} 30. h5 {[%emt 0:03:00]} Qd7 {[%emt 0:02:07]} 31. Nh4 {[%emt 0:01:27]} Kg7 {[%emt 0:00:56]} 32. Kg2 {[%emt 0:00:44]} Nc8 {[%emt 0:01:13]} 33. Qe3 {[%emt 0:03:08]} a6 {[%emt 0:01:13]} 34. Rh1 {[%emt 0:00:37]} Rh8 {[%emt 0:01:30]} 35. Qb3 {[%emt 0:02:11]} Rf8 {[%emt 0:00:44]} 36. Qe3 {[%emt 0:04:28]} Rh8 {[%emt 0:00:16]} 37. h6+ {[%emt 0:00:38]} Kf8 {[%emt 0:00:33]} 38. Qb3 {[%emt 0:00:20]} Ke8 {[%emt 0:01:08]} 39. Rc1 {[%emt 0:01:17]} Kd8 {[%emt 0:01:25]} 40. Qe3 {[%emt 0:00:00]} Re8 {[%emt 0:01:38]} 41. Bd5 {[%emt 0:02:16]} Bb8 {[%emt 0:05:26]} 42. Qb3 {[%emt 0:01:42]} Re7 {[%emt 0:02:23]} 43. Rd1 {[%emt 0:05:18]} Bd6 {[%emt 0:03:00]} 44. Qf3 {[%emt 0:00:54]} Qa4 {[%emt 0:05:43]} 45. b3 {[%emt 0:02:00]} Qxa3 {[%emt 0:02:01]} 46. Qxf6 {[%emt 0:00:06]} Kc7 {[%emt 0:03:01]} 47. Bf7 {[%emt 0:02:29]} Qb4 {[%emt 0:03:31]} 48. Rc1+ {[%emt 0:02:32]} Kb8 {[%emt 0:00:30]} 49. Rc4 {[%emt 0:00:23]} Qd2 {[%emt 0:02:33]} 50. Nxg6 {[%emt 0:01:04]} Rc7 {[%emt 0:02:09]} 51. Nxe5 {[%emt 0:02:09]} Be7 {[%emt 0:01:07]} 52. Qe6 {[%emt 0:01:42]} Rxc4 {[%emt 0:01:13]} 53. Nxc4 $18 {[%emt 0:01:06]} Qd4 {[%emt 0:01:19]} 54. Bg8 {[%emt 0:03:52]} Qf6 {[%emt 0:01:23]} 55. Qxf6 {[%emt 0:00:43]} Bxf6 {[%emt 0:00:07]} 56. f4 {[%emt 0:00:14]} b5 {[%emt 0:00:23]} 57. Ne3 {[%emt 0:00:38]} a5 {[%emt 0:00:21]} 58. e5 {[%emt 0:01:11]} Be7 {[%emt 0:00:56]} 59. Bxh7 {[%emt 0:00:25]} Bf8 {[%emt 0:00:05]} 60. Ng4 {[%emt 0:00:11]} a4 {[%emt 0:00:43]} 61. bxa4 {[%emt 0:00:57]} bxa4 {[%emt 0:00:05]} 62. Bg8 {[%emt 0:01:07]} Ne7 {[%emt 0:00:37]} 63. h7 {[%emt 0:00:50]} Bg7 {[%emt 0:00:05]} 64. Kf3 {[%emt 0:01:05]} Nf5 {[%emt 0:00:56]} 65. Ne3 {[%emt 0:00:47]} Nd4+ {[%emt 0:00:43]} 66. Ke4 {[%emt 0:00:40]} Ne2 {[%emt 0:00:22]} 67. g4 {[%emt 0:00:39]} Kc7 {[%emt 0:01:27]} 68. Nd5+ {[%emt 0:02:45]} Kd8 {[%emt 0:00:22]} 69. Nb4 {[%emt 0:01:04]} Ke8 {[%emt 0:01:01]} 70. Na2 {[%emt 0:02:19]} Kf8 {[%emt 0:00:53]} 71. Ke3 {[%emt 0:01:10]} Ng3 {[%emt 0:00:25]} 72. Bc4 {[%emt 0:00:32]} 1-0

[Event "RUS-chT Premier League Women 2018"]
[Site "Sochi"]
[Date "2018.05.04"]
[Round "4"]
[White "Mamontova, Anastasia"]
[Black "Khatmullina, Dilara"]
[Result "1-0"]
[ECO "A41"]
[WhiteElo "2051"]
[BlackElo "1860"]
[Annotator "NA"]
[PlyCount "71"]
[EventDate "2018.??.??"]
[EventCountry "RUS"]
[SourceTitle "playchess.com"]
[Source "ChessBase"]
[SourceQuality "1"]
[TimeControl "40/5400+30:1800+30"]

1. d4 {[%emt 0:00:00]} d6 {[%emt 0:00:03]} 2. c4 {[%emt 0:00:00]} e5 {[%emt 0:00:04]} 3. d5 {[%emt 0:01:11]} f5 {[%emt 0:00:08]} 4. Nc3 {[%emt 0:03:16]} Nf6 {[%emt 0:00:15]} 5. e4 {[%emt 0:03:47]} fxe4 {[%emt 0:04:26] A41: 1 d4 d6: Tartakower System and Modern Defence} (5... g6 6. Bd3 Bg7 7. exf5 gxf5 8. Qc2 Qd7 9. Nh3 Na6 10. a3 Nc5 11. Be2 a5 12. Be3 h6 13. O-O {0-1 (27) Flom,G (2448)-Onischuk,V (2623) Bastia 2017}) 6. Nge2 {[%emt 0:04:24]} Be7 {[%emt 0:02:59]} 7. Ng3 {[%emt 0:00:53]} O-O {[%emt 0:00:38]} 8. Ncxe4 {[%emt 0:00:54]} Nxe4 {[%emt 0:04:38]} 9. Nxe4 {[%emt 0:00:09]} Bf5 {[%emt 0:00:06]} 10. Bd3 {[%emt 0:09:51]} Qe8 {[%emt 0:03:41]} 11. Ng3 {[%emt 0:03:13]} Bxd3 {[%emt 0:02:57]} 12. Qxd3 {[%emt 0:00:09]} Na6 $146 {[%emt 0:02:57]} ({Predecessor:} 12... Nd7 13. Be3 {½-½ (43) Payen,A (2356)-Joie,S (2113) Le Touquet 2009}) 13. Be3 {[%emt 0:03:26]} Nb4 {[%emt 0:07:04] [#]} 14. Qc3 {[%emt 0:02:03]} (14. Qb3 $1 $16 {[%cal Rb3b4]} a5 15. a3) 14... a5 {[%emt 0:04:34]} 15. a3 {[%emt 0:03:45]} Na6 {[%emt 0:04:09]} 16. Qxa5 {[%emt 0:02:52]} Nc5 {[%emt 0:13:41]} 17. Qc3 {[%emt 0:00:29]} Bf6 {[%emt 0:03:12]} (17... e4 $142) 18. Bxc5 {[%emt 0:03:01]} dxc5 {[%emt 0:00:03]} 19. Ne4 {[%emt 0:00:12]} Qg6 {[%emt 0:02:07]} 20. Nxf6+ {[%emt 0:00:18]} Rxf6 {[%emt 0:00:54]} 21. O-O {[%emt 0:00:19]} e4 {[%emt 0:02:26]} 22. Rae1 $18 {[%emt 0:00:35]} Raf8 {[%emt 0:06:48]} 23. Qe3 {[%emt 0:14:21]} Rf4 {[%emt 0:07:45]} 24. Qxc5 {[%emt 0:11:27]} b6 {[%emt 0:08:18]} 25. Qxc7 {[%emt 0:06:15]} e3 {[%emt 0:05:59]} 26. fxe3 {[%emt 0:00:26]} Rxf1+ {[%emt 0:01:13]} 27. Rxf1 {[%emt 0:00:05]} Rxf1+ {[%emt 0:00:06]} 28. Kxf1 {[%emt 0:00:04]} Qd3+ {[%emt 0:01:30]} 29. Kf2 {[%emt 0:00:05]} Qd2+ {[%emt 0:00:38]} 30. Kf3 {[%emt 0:00:05]} Qd1+ {[%emt 0:00:19]} 31. Ke4 {[%emt 0:03:12]} Qc2+ {[%emt 0:01:28]} 32. Ke5 {[%emt 0:03:18]} Qxg2 {[%emt 0:05:59]} 33. Qc8+ {[%emt 0:00:23]} Kf7 {[%emt 0:00:06]} 34. Qe6+ {[%emt 0:00:16]} Kf8 {[%emt 0:00:03]} 35. Kd6 {[%emt 0:00:50]} Qxh2+ {[%emt 0:00:39]} 36. Kd7 {[%emt 0:00:08]} 1-0

[Event "RUS-chT Premier League Women 2018"]
[Site "Sochi"]
[Date "2018.05.04"]
[Round "4"]
[White "Grigorieva, Yulia"]
[Black "Nasybullina, Alfia"]
[Result "0-1"]
[ECO "D20"]
[WhiteElo "1969"]
[BlackElo "2140"]
[Annotator "NA"]
[PlyCount "100"]
[EventDate "2018.??.??"]
[EventCountry "RUS"]
[SourceTitle "playchess.com"]
[Source "ChessBase"]
[SourceQuality "1"]
[TimeControl "40/5400+30:1800+30"]

1. d4 {[%emt 0:00:00]} d5 {[%emt 0:00:07]} 2. c4 {[%emt 0:00:00]} dxc4 {[%emt 0:00:05]} 3. e3 {[%emt 0:00:36]} e5 {[%emt 0:00:41]} 4. Bxc4 {[%emt 0:00:22]} Nc6 {[%emt 0:00:59]} 5. d5 {[%emt 0:14:33]} Na5 {[%emt 0:02:20]} 6. Be2 {[%emt 0:05:56]} c6 {[%emt 0:02:00]} 7. Nc3 {[%emt 0:03:50]} Nf6 {[%emt 0:02:06]} 8. e4 {[%emt 0:04:07]} Bb4 {[%emt 0:04:32]} 9. Qa4 {[%emt 0:03:27]} Bxc3+ {[%emt 0:05:27]} 10. bxc3 {[%emt 0:00:08]} Bd7 {[%emt 0:11:32]} 11. Bg5 {[%emt 0:06:00]} cxd5 {[%emt 0:20:39]} 12. Bb5 {[%emt 0:00:40]} Qc7 {[%emt 0:05:50]} 13. Rd1 $17 {[%emt 0:20:59]} O-O {[%emt 0:11:00]} 14. Bxf6 {[%emt 0:06:01]} Bxb5 {[%emt 0:00:20]} 15. Qxb5 {[%emt 0:00:21]} gxf6 {[%emt 0:01:34]} 16. Ne2 {[%emt 0:03:02]} dxe4 {[%emt 0:02:22]} 17. O-O {[%emt 0:07:21]} Qc4 {[%emt 0:03:49]} 18. Qxa5 {[%emt 0:02:43]} Qxe2 {[%emt 0:00:07]} 19. Rde1 {[%emt 0:03:12]} Qc4 {[%emt 0:03:46]} 20. f4 {[%emt 0:00:31]} Rfe8 {[%emt 0:02:34]} 21. Re3 {[%emt 0:03:00]} Re6 {[%emt 0:06:59]} 22. Rg3+ {[%emt 0:02:29]} Kh8 {[%emt 0:00:18]} 23. Rd1 {[%emt 0:01:03]} b6 {[%emt 0:00:59]} 24. Qxa7 {[%emt 0:01:14]} Qc5+ {[%emt 0:03:29]} 25. Kh1 {[%emt 0:00:13]} Qf8 {[%emt 0:00:23]} 26. Qd7 {[%emt 0:06:10]} exf4 {[%emt 0:00:36]} 27. Rh3 {[%emt 0:01:28]} e3 {[%emt 0:04:06]} 28. Qd3 {[%emt 0:00:38]} Qg8 {[%emt 0:00:05]} 29. Qe2 {[%emt 0:01:30]} Rd8 {[%emt 0:00:40]} 30. Rxh7+ {[%emt 0:00:44]} Qxh7 {[%emt 0:00:39]} 31. Rxd8+ {[%emt 0:00:07]} Kg7 {[%emt 0:00:07]} 32. Rd4 {[%emt 0:02:41]} Qb1+ {[%emt 0:00:48]} 33. Rd1 {[%emt 0:00:32]} Qf5 {[%emt 0:00:18]} 34. h3 {[%emt 0:00:25]} Re5 {[%emt 0:01:46]} 35. Kg1 {[%emt 0:00:38]} Rc5 {[%emt 0:02:13]} 36. c4 {[%emt 0:00:28]} Qe4 {[%emt 0:00:19]} 37. h4 {[%emt 0:00:39]} Rxc4 {[%emt 0:00:37]} 38. Qg4+ {[%emt 0:00:29]} Qg6 {[%emt 0:00:09]} 39. Qf3 {[%emt 0:00:25]} Rc2 {[%emt 0:00:45]} 40. h5 {[%emt 0:00:00]} Qg3 {[%emt 0:00:23]} 41. h6+ {[%emt 0:03:42]} Kxh6 {[%emt 0:02:28]} 42. a4 {[%emt 0:00:22]} e2 {[%emt 0:04:04]} 43. Rb1 {[%emt 0:00:10]} e1=Q+ {[%emt 0:00:21]} 44. Rxe1 {[%emt 0:00:04]} Qxe1+ {[%emt 0:00:09]} 45. Kh2 {[%emt 0:00:03]} Qh4+ {[%emt 0:00:11]} 46. Qh3 {[%emt 0:00:08]} Qxh3+ {[%emt 0:00:07]} 47. Kxh3 {[%emt 0:00:05]} Kg5 {[%emt 0:00:15]} 48. a5 {[%emt 0:00:17]} bxa5 {[%emt 0:00:14]} 49. g4 {[%emt 0:00:05]} f5 {[%emt 0:00:44]} 50. gxf5 {[%emt 0:00:10]} Kxf5 {[%emt 0:00:06]} 0-1